fUSD/lending_fUSD_20240523
["ID","MTS","AMOUNT","RATE_DAILY","PERIOD"]
[327745683,1716426643940,-150.0,0.00021534,2]
[327745684,1716426643949,-150.0,0.00021534,2]
[327745685,1716426643958,-150.0,0.00021534,2]
[327745686,1716426643968,-150.0,0.00021534,2]
[327745687,1716426643977,-150.0,0.00021534,2]
[327745688,1716426643986,-150.0,0.00021534,2]
[327745689,1716426643996,-1000.0,0.00021588,2]
[327745690,1716426644006,-972.35078202,0.00021588,2]
[327745691,1716426644015,-1039.40241281,0.00021589,2]
[327745692,1716426644024,-445.41817332,0.00021589,2]
[327745693,1716426644034,-19734.40747855,0.00021589,2]
[327745694,1716426644043,-500.0,0.00021589,2]
[327745695,1716426644054,-257.11879413,0.00021589,2]
[327745696,1716426644063,-37481.60438299,0.00021589,2]
[327745697,1716426644072,-155.0,0.00021589,2]
[327745698,1716426644082,-200.0,0.00021589,2]
[327745699,1716426644092,-1043.83643081,0.00021589,2]
[327745700,1716426644103,-151.0,0.00021589,2]
[327745701,1716426644112,-248.976468,0.00021589,2]
[327745702,1716426644121,-248.976468,0.00021589,2]
[327745703,1716426644130,-153.440934,0.00021589,2]
[327745704,1716426644139,-151.0,0.00021589,2]
[327745705,1716426644149,-151.0,0.00021589,2]
[327745706,1716426644158,-151.0,0.00021589,2]
[327745707,1716426644167,-151.0,0.00021589,2]
[327745708,1716426644177,-151.0,0.00021589,2]
[327745709,1716426644187,-151.0,0.00021589,2]
[327745710,1716426644197,-151.0,0.00021589,2]
[327745711,1716426644206,-151.0,0.00021589,2]
[327745712,1716426644215,-151.0,0.00021589,2]
[327745713,1716426644225,-152.06854,0.00021589,2]
[327745714,1716426644234,-151.0,0.00021589,2]
[327745715,1716426644244,-151.0,0.00021589,2]
[327745716,1716426644255,-151.0,0.00021589,2]
[327745717,1716426644265,-151.0,0.00021589,2]
[327745718,1716426644275,-151.0,0.00021589,2]
[327745719,1716426644285,-151.0,0.00021589,2]
[327745720,1716426644295,-160.835563,0.00021589,2]
[327745721,1716426644305,-160.835563,0.00021589,2]
[327745722,1716426644315,-272.076501,0.00021589,2]
[327745723,1716426644325,-151.0,0.00021589,2]
[327745724,1716426644335,-151.0,0.00021589,2]
[327745725,1716426644344,-1717.570394,0.00021589,2]
[327745726,1716426644355,-151.0,0.00021589,2]
[327745727,1716426644364,-151.0,0.00021589,2]
[327745728,1716426644373,-1717.570394,0.00021589,2]
[327745729,1716426644383,-151.0,0.00021589,2]
[327745730,1716426644393,-332.730865,0.00021589,2]
[327745731,1716426644402,-332.730865,0.00021589,2]
[327745732,1716426644411,-153.533247,0.00021589,2]
[327745733,1716426644421,-241.705779,0.00021589,2]
[327745734,1716426644430,-241.705779,0.00021589,2]
[327745735,1716426644440,-151.0,0.00021589,2]
[327745736,1716426644450,-151.0,0.00021589,2]
[327745737,1716426644459,-157.264026,0.00021644,2]
[327745738,1716426644468,-760.0,0.00021678,2]
[327745739,1716426644478,-5139.51218112,0.00021718,2]
[327745740,1716426644488,-1100.0,0.0002178,2]
[327745741,1716426644497,-900.0,0.0002178,2]
[327745742,1716426644507,-5000.0,0.000218,2]
[327745743,1716426644516,-5000.0,0.000218,2]
[327745744,1716426644526,-159.43159867,0.00021817,2]
[327745745,1716426644535,-219.53334895,0.00021817,2]
[327745746,1716426644544,-5929.69774904,0.00021818,2]
[327745747,1716426644554,-450.0,0.00021877,2]
[327745748,1716426644564,-6771.4801469,0.000219,2]
[327745749,1716426644574,-1000.0,0.000219,2]
[327745750,1716426644584,-278968.016887,0.00021914,2]
[327745751,1716426644594,-151.0,0.00021914,2]
[327745752,1716426644604,-156.621904,0.00021914,2]
[327745753,1716426644614,-151.0,0.00021914,2]
[327745754,1716426644624,-226.87955,0.00021914,2]
[327745755,1716426644634,-226.87955,0.00021914,2]
[327745756,1716426644644,-151.0,0.00021914,2]
[327745757,1716426644655,-151.0,0.00021914,2]
[327745758,1716426644664,-151.0,0.00021914,2]
[327745759,1716426644674,-151.0,0.00021914,2]
[327745760,1716426644684,-151.0,0.00021914,2]
[327745761,1716426644694,-151.0,0.00021914,2]
[327745762,1716426644704,-151.0,0.00021914,2]
[327745763,1716426644714,-315.079495,0.00021914,2]
[327745764,1716426644724,-315.079495,0.00021914,2]
[327745765,1716426644736,-151.0,0.00021914,2]
[327745766,1716426644745,-1717.570394,0.00021914,2]
[327745767,1716426644755,-151.0,0.00021914,2]
[327745768,1716426644765,-151.0,0.00021914,2]
[327745769,1716426644778,-1717.570394,0.00021914,2]
[327745770,1716426644788,-332.730865,0.00021914,2]
[327745771,1716426644797,-332.730865,0.00021914,2]
[327745772,1716426644807,-241.705779,0.00021914,2]
[327745773,1716426644818,-241.705779,0.00021914,2]
[327745774,1716426644828,-151.0,0.00021914,2]
[327745775,1716426644839,-151.0,0.00021914,2]
[327745776,1716426644849,-572.27447341,0.00021915,7]
[327745777,1716426644859,-155.07911752,0.00021915,2]
[327745778,1716426644870,-249.34999661,0.00021915,2]
[327745779,1716426644880,-304.52826316,0.00021915,2]
[327745780,1716426644891,-155.24673672,0.00021916,2]
[327745781,1716426644901,-501.82264006,0.00021917,2]
[327745782,1716426644912,-501.51501857,0.00021917,2]
[327745783,1716426644922,-500.0,0.00021917,2]
[327745784,1716426644932,-625.53862055,0.00021917,2]
[327745785,1716426644943,-322.31790042,0.00021917,2]
[327745786,1716426644952,-500.0,0.00021917,2]
[327745787,1716426644962,-228.21894442,0.00021917,2]
[327745788,1716426644972,-500.0,0.00021917,2]
[327745789,1716426644982,-500.0,0.00021917,2]
[327745790,1716426644992,-447.83207885,0.00021917,2]
[327745791,1716426645002,-500.0,0.00021917,2]
[327745792,1716426645012,-500.0,0.00021917,2]
[327745793,1716426645022,-505.2181123,0.00021917,2]
[327745794,1716426645032,-507.95497182,0.00021917,2]
[327745795,1716426645042,-500.0,0.00021917,2]
[327745796,1716426645052,-500.0,0.00021917,2]
[327745797,1716426645062,-500.0,0.00021917,2]
[327745798,1716426645071,-500.0,0.00021917,2]
[327745799,1716426645081,-507.8376652,0.00021917,2]
[327745800,1716426645090,-500.0,0.00021917,2]
[327745801,1716426645100,-500.0,0.00021917,2]
[327745802,1716426645109,-509.18744429,0.00021917,2]
[327745803,1716426645119,-500.0,0.00021917,2]
[327745804,1716426645129,-508.70499451,0.00021917,2]
[327745805,1716426645138,-1630.4,0.00021917,2]
[327745806,1716426645147,-508.29790449,0.00021917,2]
[327745807,1716426645156,-530.72862224,0.00021917,2]
[327745808,1716426645166,-500.0,0.00021917,2]
[327745809,1716426645175,-500.0,0.00021917,2]
[327745810,1716426645185,-500.0,0.00021917,2]
[327745811,1716426645194,-500.0,0.00021917,2]
[327745812,1716426645203,-500.0,0.00021917,2]
[327745813,1716426645212,-500.0,0.00021917,2]
[327745814,1716426645221,-500.0,0.00021917,2]
[327745815,1716426645231,-506.80499899,0.00021917,2]
[327745816,1716426645240,-500.0,0.00021917,2]
[327745817,1716426645249,-500.0,0.00021917,2]
[327745818,1716426645259,-500.0,0.00021917,2]
[327745819,1716426645268,-500.0,0.00021917,2]
[327745820,1716426645277,-515.19984181,0.00021917,2]
[327745821,1716426645286,-500.0,0.00021917,2]
[327745822,1716426645295,-500.0,0.00021917,2]
[327745823,1716426645304,-500.0,0.00021917,2]
[327745824,1716426645314,-500.0,0.00021917,2]
[327745825,1716426645323,-507.80566156,0.00021917,2]
[327745826,1716426645332,-500.0,0.00021917,2]
[327745827,1716426645342,-151.0,0.00021917,2]
[327745828,1716426645351,-500.0,0.00021917,2]
[327745829,1716426645360,-500.0,0.00021917,2]
[327745830,1716426645369,-500.0,0.00021917,2]
[327745831,1716426645378,-500.0,0.00021917,2]
[327745832,1716426645388,-500.0,0.00021917,2]
[327745833,1716426645397,-500.0,0.00021917,2]
[327745834,1716426645406,-1975.97,0.00021917,2]
[327745835,1716426645416,-500.0,0.00021917,2]
[327745836,1716426645426,-514.39594777,0.00021917,2]
[327745837,1716426645435,-516.27301385,0.00021917,2]
[327745838,1716426645445,-500.0,0.00021917,2]
[327745839,1716426645455,-867.84,0.00021917,2]
[327745840,1716426645464,-500.0,0.00021917,2]
[327745841,1716426645473,-500.0,0.00021917,2]
[327745842,1716426645483,-500.0,0.00021917,2]
[327745843,1716426645491,-500.0,0.00021917,2]
[327745844,1716426645501,-500.0,0.00021917,2]
[327745845,1716426645510,-500.0,0.00021917,2]
[327745846,1716426645521,-500.0,0.00021917,2]
[327745847,1716426645531,-509.07896893,0.00021917,2]
[327745848,1716426645540,-500.0,0.00021917,2]
[327745849,1716426645552,-500.0,0.00021917,2]
[327745850,1716426645563,-500.0,0.00021917,2]
[327745851,1716426645572,-500.0,0.00021917,2]
[327745852,1716426645582,-500.0,0.00021917,2]
[327745853,1716426645591,-500.0,0.00021917,2]
[327745854,1716426645602,-500.0,0.00021917,2]
[327745855,1716426645611,-500.0,0.00021917,2]
[327745856,1716426645621,-500.0,0.00021917,2]
[327745857,1716426645631,-511.04029899,0.00021917,2]
[327745858,1716426645641,-508.81441811,0.00021917,2]
[327745859,1716426645651,-500.0,0.00021917,2]
[327745860,1716426645661,-1023.97,0.00021917,2]
[327745861,1716426645671,-500.0,0.00021917,2]
[327745862,1716426645681,-500.0,0.00021917,2]
[327745863,1716426645691,-1186.79,0.00021917,2]
[327745864,1716426645703,-500.0,0.00021917,2]
[327745865,1716426645713,-151.0,0.00021917,2]
[327745870,1716426645861,-500.0,0.00021917,2]
[327745871,1716426645871,-500.0,0.00021917,2]
[327745872,1716426645881,-261.97411456,0.00021917,2]
[327745873,1716426645891,-500.0,0.00021917,2]
[327745874,1716426645901,-500.0,0.00021917,2]
[327745875,1716426645910,-500.0,0.00021917,2]
[327745876,1716426645921,-500.0,0.00021917,2]
[327745877,1716426645930,-506.70424761,0.00021917,2]
[327745878,1716426645940,-500.0,0.00021917,2]
[327745879,1716426645950,-294.55880727,0.00021917,2]
[327745880,1716426645960,-500.0,0.00021917,2]
[327745881,1716426645969,-530.22181018,0.00021917,2]
[327745882,1716426645979,-500.0,0.00021917,2]
[327745883,1716426645989,-508.61462821,0.00021917,2]
[327745884,1716426645998,-500.0,0.00021917,2]
[327745885,1716426646008,-500.0,0.00021917,2]
[327745886,1716426646017,-500.0,0.00021917,2]
[327745887,1716426646027,-500.0,0.00021917,2]
[327745888,1716426646036,-500.0,0.00021917,2]
[327745889,1716426646045,-500.0,0.00021917,2]
[327745890,1716426646054,-506.27461406,0.00021917,2]
[327745891,1716426646064,-500.0,0.00021917,2]
[327745892,1716426646075,-1000.0,0.00021917,2]
[327745893,1716426646084,-500.0,0.00021917,2]
[327745894,1716426646095,-505.03901336,0.00021917,2]
[327745895,1716426646105,-500.0,0.00021917,2]
[327745896,1716426646115,-469.13007173,0.00021917,2]
[327745897,1716426646125,-500.0,0.00021917,2]
[327745898,1716426646134,-500.0,0.00021917,2]
[327745899,1716426646144,-500.0,0.00021917,2]
[327745900,1716426646155,-500.0,0.00021917,2]
[327745901,1716426646167,-500.0,0.00021917,2]
[327745902,1716426646177,-500.0,0.00021917,2]
[327745903,1716426646186,-500.0,0.00021917,2]
[327745904,1716426646195,-627.31628328,0.00021917,2]
[327745905,1716426646205,-500.0,0.00021917,2]
[327745906,1716426646214,-500.0,0.00021917,2]
[327745907,1716426646224,-500.0,0.00021917,2]
[327745908,1716426646234,-508.38902723,0.00021917,2]
[327745909,1716426646243,-500.0,0.00021917,2]
[327745910,1716426646253,-511.6279491,0.00021917,2]
[327745911,1716426646262,-500.0,0.00021917,2]
[327745912,1716426646271,-500.0,0.00021917,2]
[327745913,1716426646281,-500.0,0.00021917,2]
[327745914,1716426646291,-500.0,0.00021917,2]
[327745915,1716426646302,-500.0,0.00021917,2]
[327745916,1716426646311,-500.0,0.00021917,2]
[327745917,1716426646321,-507.21938948,0.00021917,10]
[327745918,1716426646330,-220.40727337,0.00021917,2]
[327745919,1716426646340,-500.0,0.00021917,2]
[327745920,1716426646351,-500.0,0.00021917,2]
[327745921,1716426646361,-500.0,0.00021917,2]
[327745922,1716426646370,-500.0,0.00021917,2]
[327745923,1716426646379,-585.48658577,0.00021917,2]
[327745924,1716426646388,-500.0,0.00021917,2]
[327745925,1716426646400,-457.58992598,0.00021917,2]
[327745926,1716426646409,-500.0,0.00021917,2]
[327745927,1716426646418,-500.0,0.00021917,2]
[327745928,1716426646428,-506.99246674,0.00021917,2]
[327745929,1716426646437,-500.0,0.00021917,2]
[327745930,1716426646446,-500.0,0.00021917,2]
[327745931,1716426646455,-310.78986976,0.00021917,2]
[327745932,1716426646465,-500.0,0.00021917,2]
[327745933,1716426646475,-510.84329076,0.00021917,2]
[327745934,1716426646484,-500.0,0.00021917,2]
[327745935,1716426646493,-500.0,0.00021917,2]
[327745936,1716426646502,-500.0,0.00021917,2]
[327745937,1716426646511,-500.0,0.00021917,2]
[327745938,1716426646520,-208.96629022,0.00021917,2]
[327745939,1716426646529,-500.0,0.00021917,2]
[327745940,1716426646539,-500.0,0.00021917,2]
[327745941,1716426646548,-500.0,0.00021917,2]
[327745942,1716426646557,-500.0,0.00021917,2]
[327745943,1716426646566,-500.0,0.00021917,2]
[327745944,1716426646575,-500.0,0.00021917,2]
[327745945,1716426646584,-153.687288,0.00021917,2]
[327745946,1716426646593,-500.0,0.00021917,2]
[327745947,1716426646603,-500.0,0.00021917,2]
[327745948,1716426646612,-504.7968309,0.00021917,2]
[327745949,1716426646622,-500.0,0.00021917,2]
[327745950,1716426646631,-500.0,0.00021917,2]
[327745951,1716426646639,-505.30894792,0.00021917,2]
[327745952,1716426646649,-500.0,0.00021917,2]
[327745953,1716426646658,-500.0,0.00021917,2]
[327745954,1716426646667,-952.5,0.00021917,2]
[327745955,1716426646676,-520.6587931,0.00021917,2]
[327745956,1716426646685,-500.0,0.00021917,2]
[327745957,1716426646695,-500.0,0.00021917,2]
[327745958,1716426646704,-500.0,0.00021917,2]
[327745959,1716426646713,-530.81939813,0.00021917,2]
[327745960,1716426646722,-500.0,0.00021917,2]
[327745961,1716426646735,-500.0,0.00021917,2]
[327745962,1716426646745,-500.0,0.00021917,2]
[327745963,1716426646754,-500.0,0.00021917,2]
[327745964,1716426646763,-500.0,0.00021917,2]
[327745965,1716426646773,-153.639977,0.00021917,2]
[327745966,1716426646782,-500.0,0.00021917,2]
[327745967,1716426646792,-359.51106259,0.00021917,2]
[327745968,1716426646801,-310.0,0.00021917,2]
[327745969,1716426646813,-500.0,0.00021917,2]
[327745970,1716426646822,-500.0,0.00021917,2]
[327745971,1716426646831,-500.0,0.00021917,2]
[327745972,1716426646840,-521.85160091,0.00021917,2]
[327745973,1716426646849,-505.21951459,0.00021917,2]
[327745974,1716426646860,-500.0,0.00021917,2]
[327745975,1716426646869,-500.0,0.00021917,2]
[327745976,1716426646879,-500.0,0.00021917,2]
[327745977,1716426646888,-500.0,0.00021917,2]
[327745978,1716426646898,-526.30961714,0.00021917,2]
[327745979,1716426646908,-582.95,0.00021917,2]
[327745980,1716426646918,-500.0,0.00021917,2]
[327745981,1716426646928,-1240.53,0.00021917,2]
[327745982,1716426646937,-500.0,0.00021917,2]
[327745983,1716426646946,-506.15116725,0.00021917,2]
[327745984,1716426646956,-500.0,0.00021917,2]
[327745985,1716426646965,-500.0,0.00021917,2]
[327745986,1716426646975,-523.21,0.00021917,2]
[327745987,1716426646985,-500.0,0.00021917,2]
[327745988,1716426646995,-500.0,0.00021917,2]
[327745989,1716426647004,-500.0,0.00021917,2]
[327745990,1716426647013,-523.64345724,0.00021917,2]
[327745991,1716426647023,-500.0,0.00021917,2]
[327745992,1716426647032,-500.0,0.00021917,2]
[327745993,1716426647042,-500.0,0.00021917,2]
[327745994,1716426647051,-500.0,0.00021917,2]
[327745995,1716426647061,-500.0,0.00021917,2]
[327745996,1716426647070,-500.0,0.00021917,2]
[327745997,1716426647079,-500.0,0.00021917,2]
[327745998,1716426647088,-503.59010959,0.00021917,2]
[327745999,1716426647098,-500.0,0.00021917,2]
[327746000,1716426647108,-460.79415787,0.00021917,2]
[327746001,1716426647117,-507.19504345,0.00021917,2]
[327746002,1716426647127,-500.0,0.00021917,2]
[327746003,1716426647136,-500.0,0.00021917,2]
[327746004,1716426647145,-505.25428526,0.00021917,2]
[327746005,1716426647155,-500.0,0.00021917,2]
[327746006,1716426647164,-500.0,0.00021917,2]
[327746007,1716426647173,-500.0,0.00021917,2]
[327746008,1716426647183,-504.51283266,0.00021917,2]
[327746009,1716426647192,-159.92936221,0.00021917,2]
[327746010,1716426647201,-500.0,0.00021917,2]
[327746011,1716426647211,-503.76528616,0.00021917,2]
[327746012,1716426647219,-500.0,0.00021917,2]
[327746013,1716426647229,-500.0,0.00021917,2]
[327746014,1716426647238,-500.0,0.00021917,2]
[327746015,1716426647248,-151.0,0.00021917,2]
[327746016,1716426647257,-500.0,0.00021917,2]
[327746017,1716426647266,-500.0,0.00021917,2]
[327746018,1716426647276,-500.0,0.00021917,2]
[327746019,1716426647286,-507.06219388,0.00021917,2]
[327746020,1716426647295,-154.53174623,0.00021917,2]
[327746021,1716426647305,-500.0,0.00021917,2]
[327746022,1716426647315,-500.0,0.00021917,2]
[327746023,1716426647324,-507.25682684,0.00021917,2]
[327746024,1716426647335,-534.00836562,0.00021917,2]
[327746025,1716426647345,-504.38407334,0.00021917,2]
[327746026,1716426647355,-500.0,0.00021917,2]
[327746027,1716426647365,-504.10228281,0.00021917,2]
[327746028,1716426647375,-515.7229637,0.00021917,2]
[327746029,1716426647384,-500.0,0.00021917,2]
[327746030,1716426647394,-151.97320618,0.00021917,2]
[327746031,1716426647403,-741.22,0.00021917,2]
[327746032,1716426647413,-516.27379478,0.00021917,2]
[327746033,1716426647422,-508.597432,0.00021917,2]
[327746034,1716426647432,-509.34465528,0.00021917,2]
[327746035,1716426647441,-500.0,0.00021917,2]
[327746036,1716426647451,-500.0,0.00021917,2]
[327746037,1716426647461,-344.69464661,0.00021917,2]
[327746038,1716426647470,-500.0,0.00021917,2]
[327746039,1716426647480,-500.0,0.00021917,2]
[327746040,1716426647490,-500.0,0.00021917,2]
[327746041,1716426647500,-500.0,0.00021917,2]
[327746042,1716426647509,-500.0,0.00021917,2]
[327746043,1716426647518,-500.0,0.00021917,2]
[327746044,1716426647528,-500.0,0.00021917,2]
[327746045,1716426647537,-500.0,0.00021917,2]
[327746046,1716426647547,-500.0,0.00021917,2]
[327746047,1716426647556,-500.0,0.00021917,2]
[327746048,1716426647565,-500.0,0.00021917,2]
[327746049,1716426647575,-500.0,0.00021917,2]
[327746050,1716426647584,-500.0,0.00021917,2]
[327746051,1716426647594,-513.84,0.00021917,2]
[327746052,1716426647603,-494.47830132,0.00021917,2]
[327746053,1716426647612,-606.18638003,0.00021917,2]
[327746054,1716426647622,-500.0,0.00021917,2]
[327746055,1716426647631,-500.0,0.00021917,2]
[327746056,1716426647641,-226.87955,0.00021917,2]
[327746057,1716426647650,-500.0,0.00021917,2]
[327746058,1716426647662,-226.87955,0.00021917,2]
[327746059,1716426647671,-151.06433154,0.00021917,2]
[327746060,1716426647680,-500.0,0.00021917,2]
[327746061,1716426647690,-500.0,0.00021917,2]
[327746062,1716426647699,-500.0,0.00021917,2]
[327746063,1716426647708,-502.5276822,0.00021917,2]
[327746064,1716426647717,-500.0,0.00021917,2]
[327746065,1716426647727,-451.5921311,0.00021917,2]
[327746066,1716426647740,-226.87955,0.00021917,2]
[327746067,1716426647750,-500.0,0.00021917,2]
[327746068,1716426647760,-226.87955,0.00021917,2]
[327746069,1716426647772,-497.19130364,0.00021917,2]
[327746070,1716426647781,-500.0,0.00021917,2]
[327746071,1716426647790,-500.0,0.00021917,2]
[327746072,1716426647799,-501.82851517,0.00021917,2]
[327746073,1716426647809,-500.0,0.00021917,2]
[327746074,1716426647819,-344.70665812,0.00021917,2]
[327746075,1716426647828,-500.0,0.00021917,2]
[327746076,1716426647837,-500.0,0.00021917,2]
[327746077,1716426647847,-500.0,0.00021917,2]
[327746078,1716426647857,-500.0,0.00021917,2]
[327746079,1716426647866,-500.0,0.00021917,2]
[327746080,1716426647875,-500.0,0.00021917,2]
[327746081,1716426647884,-758.09,0.00021917,2]
[327746082,1716426647894,-500.0,0.00021917,2]
[327746083,1716426647903,-500.0,0.00021917,2]
[327746084,1716426647912,-512.83868251,0.00021917,2]
[327746085,1716426647922,-500.0,0.00021917,2]
[327746086,1716426647932,-500.0,0.00021917,2]
[327746087,1716426647941,-506.98762003,0.00021917,2]
[327746088,1716426647951,-500.0,0.00021917,2]
[327746089,1716426647960,-509.28454748,0.00021917,2]
[327746090,1716426647969,-500.0,0.00021917,2]
[327746091,1716426647978,-502.58284863,0.00021917,2]
[327746092,1716426647987,-506.96540903,0.00021917,2]
[327746093,1716426647997,-200.89119599,0.00021917,2]
[327746094,1716426648006,-593.5176794,0.00021917,2]
[327746095,1716426648016,-500.0,0.00021917,2]
[327746096,1716426648157,-500.0,0.00021917,2]
[327746097,1716426648167,-500.0,0.00021917,2]
[327746098,1716426648176,-500.0,0.00021917,2]
[327746099,1716426648185,-874.12,0.00021917,2]
[327746100,1716426648194,-172.49694129,0.00021917,2]
[327746101,1716426648203,-500.0,0.00021917,2]
[327746102,1716426648212,-500.0,0.00021917,2]
[327746103,1716426648222,-500.0,0.00021917,2]
[327746104,1716426648231,-500.0,0.00021917,2]
[327746105,1716426648240,-500.0,0.00021917,2]
[327746106,1716426648248,-500.0,0.00021917,2]
[327746107,1716426648257,-1319.54,0.00021917,2]
[327746108,1716426648266,-238.91164079,0.00021917,2]
[327746109,1716426648275,-541.04718242,0.00021917,2]
[327746110,1716426648284,-155.0,0.00021917,2]
[327746111,1716426648293,-500.0,0.00021917,2]
[327746112,1716426648302,-299.19766134,0.00021917,2]
[327746113,1716426648311,-500.0,0.00021917,2]
[327746114,1716426648320,-505.01,0.00021917,2]
[327746115,1716426648330,-20000.0,0.00021917,2]
[327746116,1716426648339,-500.0,0.00021917,2]
[327746117,1716426648348,-500.0,0.00021917,2]
[327746118,1716426648358,-371.93003001,0.00021917,2]
[327746119,1716426648367,-500.0,0.00021917,2]
[327746120,1716426648376,-500.0,0.00021917,2]
[327746121,1716426648385,-154.94705368,0.00021917,2]
[327746122,1716426648394,-603.18,0.00021917,2]
[327746123,1716426648404,-500.0,0.00021917,2]
[327746124,1716426648413,-151.0,0.00021917,2]
[327746125,1716426648424,-199.94602822,0.00021917,2]
[327746126,1716426648434,-151.0,0.00021917,2]
[327746127,1716426648443,-500.0,0.00021917,2]
[327746128,1716426648452,-500.0,0.00021917,2]
[327746129,1716426648461,-516.25285589,0.00021917,2]
[327746130,1716426648471,-505.246973,0.00021917,2]
[327746131,1716426648480,-152.84220056,0.00021917,2]
[327746132,1716426648490,-500.0,0.00021917,2]
[327746133,1716426648499,-500.0,0.00021917,2]
[327746134,1716426648509,-500.0,0.00021917,2]
[327746135,1716426648518,-513.76416559,0.00021917,2]
[327746136,1716426648528,-513.16726991,0.00021917,2]
[327746137,1716426648538,-498.72989163,0.00021917,2]
[327746138,1716426648547,-151.763336,0.00021917,2]
[327746139,1716426648556,-510.86693499,0.00021917,2]
[327746140,1716426648565,-500.0,0.00021917,2]
[327746141,1716426648574,-500.0,0.00021917,2]
[327746142,1716426648584,-500.0,0.00021917,2]
[327746143,1716426648593,-500.0,0.00021917,2]
[327746144,1716426648604,-500.0,0.00021917,2]
[327746145,1716426648613,-352.32223483,0.00021917,2]
[327746146,1716426648623,-500.0,0.00021917,2]
[327746147,1716426648632,-500.0,0.00021917,2]
[327746148,1716426648641,-151.0,0.00021917,2]
[327746149,1716426648651,-516.38307832,0.00021917,2]
[327746150,1716426648660,-500.0,0.00021917,2]
[327746151,1716426648670,-500.0,0.00021917,2]
[327746152,1716426648679,-1178.68,0.00021917,2]
[327746153,1716426648688,-500.0,0.00021917,2]
[327746154,1716426648699,-500.0,0.00021917,2]
[327746155,1716426648709,-500.0,0.00021917,2]
[327746156,1716426648719,-500.0,0.00021917,2]
[327746157,1716426648729,-153.73210646,0.00021917,2]
[327746158,1716426648744,-500.0,0.00021917,2]
[327746159,1716426648755,-500.0,0.00021917,2]
[327746160,1716426648765,-157.54616783,0.00021917,2]
[327746161,1716426648775,-500.0,0.00021917,2]
[327746162,1716426648784,-500.0,0.00021917,2]
[327746163,1716426648794,-500.0,0.00021917,2]
[327746164,1716426648804,-500.0,0.00021917,2]
[327746165,1716426648814,-199.91171188,0.00021917,2]
[327746166,1716426648824,-4893.34,0.00021917,2]
[327746167,1716426648834,-500.0,0.00021917,2]
[327746168,1716426648845,-500.0,0.00021917,2]
[327746169,1716426648854,-557.56,0.00021917,2]
[327746170,1716426648863,-500.0,0.00021917,2]
[327746171,1716426648872,-500.0,0.00021917,2]
[327746172,1716426648882,-500.0,0.00021917,2]
[327746173,1716426648891,-500.0,0.00021917,2]
[327746174,1716426648902,-500.0,0.00021917,2]
[327746175,1716426648911,-513.70399053,0.00021917,2]
[327746176,1716426648921,-500.0,0.00021917,2]
[327746177,1716426648930,-500.0,0.00021917,2]
[327746178,1716426648939,-500.0,0.00021917,2]
[327746179,1716426648949,-500.0,0.00021917,2]
[327746180,1716426648958,-505.82797894,0.00021917,2]
[327746181,1716426648967,-511.87734828,0.00021917,2]
[327746182,1716426648976,-500.0,0.00021917,2]
[327746183,1716426648985,-511.76584511,0.00021917,2]
[327746184,1716426648994,-500.0,0.00021917,2]
[327746185,1716426649004,-500.0,0.00021917,2]
[327746186,1716426649013,-150.0,0.00021917,2]